[Event "GER-ch Youth-U16 2022"]
[Site "Willingen"]
[Date "2022.06.11"]
[Round "9.4"]
[White "Trushko, Andrii"]
[Black "Sidletskyi, Ivan"]
[Result "1/2-1/2"]
[ECO "E35"]
[WhiteElo "1897"]
[BlackElo "2084"]
[Annotator "TA"]
[PlyCount "147"]
[EventDate "2022.06.05"]
[EventType "swiss"]
[EventRounds "9"]
[EventCountry "GER"]
[SourceTitle "playchess.com"]
[Source "ChessBase"]
[SourceQuality "1"]
[TimeControl "40/4500+30:900+30"]

{[%evp 16,147,0,-3,19,19,56,39,69,72,79,70,77,80,99,79,109,45,61,47,115,101,153,91,187,187,189,124,258,66,61,61,241,249,322,123,133,119,133,120,103,0,0,0,0,0,0,-9,-25,-322,-300,-536,-515,-909,-894,-849,-618,-536,-100,-100,-100,-100,-98,-90,-25,-25,-25,-25,-26,-29,-30,-26,-26,-82,-50,-65,-4,-5,0,0,0,-40,0,0,0,0,0,0,0,0,0,0,0,0,0,0,0,0,0,0,0,0,0,0,0,0,0,0,0,0,0,0,0,0,0,0,0,0,0,0,0,0,0,0,0,0,0,0,0,0,0,0,0,0]} 1. d4 {[%emt 0:00:00]} e6 {[%emt 0:00:00]} 2. c4 {[%emt 0:00:00]} Nf6 {[%emt 0:00:00]} 3. Nc3 {[%emt 0:00:00]} Bb4 {[%emt 0:00:00]} 4. Qc2 {[%emt 0:00:00]} d5 {[%emt 0:00:00]} 5. cxd5 {[%emt 0:00:00]} exd5 {[%emt 0:00:00]} 6. Bg5 {[%emt 0:00:00]} h6 {[%emt 0:04:44]} 7. Bxf6 {[%emt 0:00:00]} Qxf6 {[%emt 0:00:21]} 8. a3 {[%emt 0:00:00]} Bxc3+ {[%emt 0:03:16]} 9. Qxc3 {[%emt 0:00:00]} Nc6 {[%emt 0:07:33] E35: Nimzo-Indian: Classical: 4...d5 5 cxd5 exd5.} 10. e3 {[%emt 0:00:00]} Qg6 {[%emt 0:09:40]} 11. Ne2 {[%emt 0:00:00]} O-O {[%emt 0:01:13] White is slightly better.} 12. Nf4 {[%emt 0:01:54]} Qd6 {[%emt 0:00:23] [#]} 13. Rc1 $146 {[%emt 0:01:31]} ({Predecessor:} 13. Be2 Bf5 14. O-O Ne7 15. b4 a6 16. a4 c6 17. Rfc1 Rfc8 18. Qc5 Qd8 19. Nd3 a5 20. Rab1 {½-½ (20) Markus,R (2336)-Bokros,A (2405) Budapest 1999}) 13... Re8 {[%emt 0:03:57]} 14. Be2 {[%emt 0:04:07]} g5 {[%emt 0:14:19]} 15. Nd3 {[%emt 0:00:44]} Bf5 {[%emt 0:00:27]} 16. Nc5 {[%emt 0:01:18]} (16. h4 $16) 16... Nd8 $1 $14 {[%emt 0:04:25]} (16... b6 $2 17. Nb7 Qf6 18. Qxc6 $18) 17. Bd3 {[%emt 0:02:51]} Bg4 {[%emt 0:01:34]} (17... Bxd3 $14 18. Nxd3 Ne6) 18. h4 $16 {[%emt 0:02:02]} b6 {[%emt 0:06:03]} (18... Qf6 $142) 19. Nb3 {[%emt 0:03:30]} (19. Na6 $142) 19... Ne6 {[%emt 0:07:00]} (19... c6 $16) 20. hxg5 $18 {[%emt 0:06:11]} h5 {[%emt 0:02:41]} 21. Qc6 {[%emt 0:03:19]} (21. O-O $18) 21... Qd8 {[%emt 0:00:56]} (21... Qe7 $16) 22. Kd2 $2 {[%emt 0:03:55]} (22. g6 $18) 22... Qxg5 $14 {[%emt 0:00:43]} 23. Rcg1 {[%emt 0:00:05]} h4 $2 {[%emt 0:02:28]} (23... Rad8 $14) 24. f3 $1 $18 {[%emt 0:06:22][%cal Bf2f3,Bf3f4][%mdl 32]} Bh5 {[%emt 0:04:44] [#]} (24... Nc5 $2 25. dxc5 Qxe3+ 26. Kc2 $18) 25. g4 $2 {[%emt 0:01:58]} (25. g3 $1 $18 {[%cal Rg3h4] is the precise move to win.} hxg3 26. Rh3 Nxd4 27. Rhxg3 Nxc6 28. Rxg5+ Bg6 29. Bxg6) 25... Bg6 $16 {[%emt 0:03:45]} 26. Bxg6 {[%emt 0:00:10] The board is on fire. Active counter play!} fxg6 {[%emt 0:01:26] [#]} 27. f4 $1 {[%emt 0:00:57]} Qe7 {[%emt 0:01:46]} (27... Nxf4 $2 28. exf4 Qxf4+ 29. Kd1 $18) 28. Nc1 {[%emt 0:03:46]} (28. f5 $16 Nf8 29. Qxd5+ Kg7 30. Re1) 28... Rad8 $11 {[%emt 0:01:10]} 29. g5 {[%emt 0:01:10]} Ng7 $1 {[%emt 0:00:44]} 30. Re1 {[%emt 0:00:36]} Rd6 $36 {[%emt 0:00:13][%mdl 2048] White is under pressure.} 31. Qc3 {[%emt 0:03:11]} Nf5 {[%emt 0:00:22]} 32. Qb3 $2 {[%emt 0:02:24][%mdl 8192]} (32. Nd3 $11 {and White is okay.}) 32... c5 $19 {[%emt 0:00:28] aiming for ...c4.} 33. Rh3 $2 {[%emt 0:05:23]} (33. Qb5 a6 34. Qxa6) 33... Qe4 {[%emt 0:00:41]} 34. Ne2 {[%emt 0:03:44]} (34. dxc5 $142 bxc5 35. Re2) 34... cxd4 {[%emt 0:00:50]} 35. exd4 {[%emt 0:00:32]} Nxd4 {[%emt 0:00:56]} 36. Qd3 {[%emt 0:00:49]} Nxe2 {[%emt 0:00:27]} (36... Qg2 $19 {[%cal Od6e6] has better winning chances. White must now prevent ...Rde6!} 37. Re3 Re4) 37. Qxe4 $17 {[%emt 0:00:30][%mdl 64] Remove Defender} Rxe4 {[%emt 0:00:18]} ({Reject} 37... dxe4+ $6 38. Kxe2 Rc8 39. Rxh4 $15) 38. Rxe2 {[%emt 0:00:01]} Rxf4 $19 {[%emt 0:00:12][%mdl 4096] Endgame KRR-KRR} 39. Reh2 {[%emt 0:00:15]} Rg4 {[%emt 0:01:29]} (39... Rd4+ $17 40. Kc3 Rg4 41. Rxh4 Rxg5 42. Rh8+ Kf7 43. R2h7+ Kf6 44. Rf8+ Ke5 45. Re8+ Kf4 46. Rf7+ Kg3) 40. Rxh4 $11 {[%emt 0:00:05]} Rxg5 {[%emt 0:00:07]} 41. Rh8+ {[%emt 0:16:02]} Kg7 {[%emt 0:00:00]} 42. R8h7+ $1 {[%emt 0:00:00]} Kf6 {[%emt 0:00:00]} 43. Rxa7 {[%emt 0:00:00]} d4 {[%emt 0:00:00]} 44. Ra4 {[%emt 0:00:00]} (44. a4 $11 {remains equal.}) 44... Rg3 {[%emt 0:00:00]} 45. Rb4 {[%emt 0:00:00]} Ke5 {[%emt 0:00:00]} (45... d3 $15) 46. Re2+ $1 {[%emt 0:00:00]} Kf4 {[%emt 0:00:00]} 47. Re8 {[%emt 0:00:00]} g5 {[%emt 0:00:00]} 48. Rb8 {[%emt 0:00:00]} Ke4 {[%emt 0:01:50]} 49. Re8+ {[%emt 0:00:00] The position is equal.} Kd5 {[%emt 0:00:33]} 50. Rb8 {[%emt 0:00:00]} Ke4 {[%emt 0:06:16]} 51. Re8+ {[%emt 0:00:00]} Kf3 {[%emt 0:00:37] And now ...d3 would win.} 52. Rf8+ $1 {[%emt 0:00:00]} Kg2 {[%emt 0:03:00]} 53. Rb8 {[%emt 0:00:00]} Rf6 {[%emt 0:05:47] Hoping for ...Rf2+.} 54. Rxd4 {[%emt 0:00:00]} g4 {[%emt 0:03:10]} 55. Rg8 {[%emt 0:00:00]} Kf3 {[%emt 0:01:24]} 56. Rd3+ {[%emt 0:01:20]} Kf4 {[%emt 0:00:07] ...Rxd3+ is the strong threat.} 57. Rd4+ {[%emt 0:00:27]} Kf5 {[%emt 0:00:08]} 58. Rb4 {[%emt 0:00:37]} Rg2+ {[%emt 0:00:22]} 59. Ke1 {[%emt 0:00:53]} Rc6 {[%emt 0:00:48][%cal Rc6c1]} 60. Kf1 {[%emt 0:03:44]} Rcc2 {[%emt 0:02:11]} 61. Rb5+ {[%emt 0:08:09]} Ke4 {[%emt 0:00:48]} 62. Re8+ {[%emt 0:01:31]} Kd3 {[%emt 0:01:28]} 63. Rd8+ {[%emt 0:01:36]} Ke4 {[%emt 0:00:26] Threatens to win with ...Rcf2+.} 64. Rb4+ {[%emt 0:00:34]} Kf5 {[%emt 0:00:19]} 65. Rb5+ {[%emt 0:00:13]} Ke6 {[%emt 0:00:46]} 66. Rxb6+ {[%emt 0:00:11]} Ke7 {[%emt 0:00:06]} 67. Rh8 {[%emt 0:01:53]} Rcf2+ {[%emt 0:00:41]} 68. Ke1 {[%emt 0:00:06] Strongly threatening Rh7+.} Kf7 {[%emt 0:00:52]} 69. Rh7+ {[%emt 0:00:57]} Kg8 {[%emt 0:00:06]} 70. Re7 {[%emt 0:00:08]} Rxb2 {[%emt 0:00:38]} 71. Rxb2 {[%emt 0:00:21]} Rxb2 {[%emt 0:00:02]} 72. Re4 {[%emt 0:00:07]} Ra2 {[%emt 0:00:25]} 73. Rxg4+ {[%emt 0:00:15]} Kf7 {[%emt 0:00:04]} 74. a4 {[%emt 0:00:24] Never resign too early!  Weighted Error Value: White=0.42/Black=0.38} 1/2-1/2

[Event "GER-ch Youth-U16 2022"]
[Site "Willingen"]
[Date "2022.06.11"]
[Round "9.5"]
[White "Foerster-Yialamas, Lucas"]
[Black "Heinrich, John"]
[Result "1-0"]
[ECO "B48"]
[WhiteElo "2117"]
[BlackElo "2011"]
[Annotator "TA"]
[PlyCount "105"]
[EventDate "2022.06.05"]
[EventType "swiss"]
[EventRounds "9"]
[EventCountry "GER"]
[SourceTitle "playchess.com"]
[Source "ChessBase"]
[SourceQuality "1"]
[TimeControl "40/4500+30:900+30"]

{[%evp 11,105,25,29,27,26,18,25,21,24,25,31,22,42,46,52,45,44,25,52,61,99,91,95,72,52,43,46,51,103,39,113,99,163,99,206,47,184,156,160,165,169,120,120,120,124,120,111,-30,-28,-125,-102,-103,0,0,7,8,22,0,8,-191,66,2,7,0,0,0,15,11,43,37,185,141,156,142,141,144,186,47,66,54,71,69,108,115,115,112,152,136,206,212,511,482,707,689,637,613]} 1. e4 {[%emt 0:00:00]} c5 {[%emt 0:00:00]} 2. Nf3 {[%emt 0:00:00]} e6 {[%emt 0:00:00]} 3. d4 {[%emt 0:00:00]} cxd4 {[%emt 0:00:00]} 4. Nxd4 {[%emt 0:00:00]} Nc6 {[%emt 0:00:00]} 5. Nc3 {[%emt 0:00:00]} Qc7 {[%emt 0:00:00]} 6. Be3 {[%emt 0:00:00]} Nf6 {[%emt 0:00:00][%cal Bg8f6,Bf6d5,Bd5c3][%mdl 32]} 7. f4 {[%emt 0:00:00] B48: Sicilian: Taimanov: 5 Nc3 Qc7 6 Be3 a6 without Be2.} Bb4 {[%emt 0:00:00]} 8. Ndb5 {[%emt 0:00:00]} Qa5 {[%emt 0:00:00]} 9. e5 {[%emt 0:00:00] White has an edge.} Nd5 {[%emt 0:00:00]} 10. Bd2 {[%emt 0:00:00]} Nxc3 $1 {[%emt 0:00:00]} 11. Bxc3 {[%emt 0:00:00]} O-O {[%emt 0:00:00]} 12. Qd2 $1 {[%emt 0:13:07]} f6 {[%emt 0:00:00]} 13. exf6 {[%emt 0:01:22]} Rxf6 {[%emt 0:00:00]} 14. g3 {[%emt 0:02:26] [#]} Rf5 $146 {[%emt 0:13:37] aiming for ...Rd5.} ({Predecessor:} 14... d5 15. Bxb4 Nxb4 16. Nd4 Qb6 17. c3 Nc6 18. O-O-O Bd7 19. Be2 Be8 20. Bg4 Nxd4 21. Qxd4 Qxd4 22. Rxd4 {1-0 (49) Giri,A (2715)-Bauer,C (2639) Leon 2012}) 15. Bxb4 $1 {[%emt 0:06:40]} Nxb4 {[%emt 0:09:12]} 16. c3 {[%emt 0:01:29]} Nc6 {[%emt 0:01:31]} 17. b4 {[%emt 0:03:38]} Qb6 {[%emt 0:05:48]} 18. Nd6 {[%emt 0:06:15]} Rd5 {[%emt 0:04:14]} 19. Nc4 {[%emt 0:00:06]} Qd8 {[%emt 0:06:28]} (19... Qc7 $1 $14 20. Qc2 a5) 20. Qe3 {[%emt 0:02:35]} (20. Bd3 $16) 20... Qf6 {[%emt 0:09:52]} (20... b5 $14) 21. Rc1 $1 $16 {[%emt 0:01:30]} g5 {[%emt 0:07:02]} (21... b5 $16 {was called for.}) 22. Rg1 {[%emt 0:07:31]} (22. Bg2 $18 gxf4 23. gxf4) 22... g4 {[%emt 0:07:17]} (22... b5 23. Na3 $14) (22... d6 $16) 23. Bd3 $2 {[%emt 0:03:24]} (23. Qe2 $18) 23... Rh5 {[%emt 0:02:00]} (23... b5 $14 24. Nd2 a5) 24. Qe2 $18 {[%emt 0:00:51]} Kh8 {[%emt 0:03:32]} 25. Rg2 {[%emt 0:02:37]} (25. Qxg4 Rxh2 26. Nd6 Ne5 $14) 25... Qg7 {[%emt 0:07:43]} 26. Nd6 {[%emt 0:02:49]} (26. Ne3 $18) 26... Qf8 $16 {[%emt 0:02:13]} 27. Nb5 {[%emt 0:04:33] 0x0.000860bd7f41dp-1022s more active pieces.} (27. Nxc8 $6 Rxc8 28. Qd1 Qh6 $11) 27... Qg7 {[%emt 0:01:42]} 28. Nc7 {[%emt 0:05:10]} Rb8 {[%emt 0:00:05]} 29. b5 {[%emt 0:03:47]} (29. h3 $16) 29... Ne5 $1 $11 {[%emt 0:00:32][%cal Od7d5] And now ...d5! would win.} 30. Bb1 {[%emt 0:06:20]} (30. fxe5 Rxe5 31. Be4 d5 $17) (30. Kf1 $11 Nf3 31. b6 axb6 32. Qe3) 30... d5 {[%emt 0:02:32]} 31. Kd1 {[%emt 0:04:18]} Qxc7 {[%emt 0:01:43]} (31... Nc4 $1 $17 32. Nxe6 Bxe6 33. Qxe6 Rh6) 32. fxe5 {[%emt 0:00:06]} Qxe5 {[%emt 0:01:42]} 33. Qxg4 {[%emt 0:00:27]} Bd7 {[%emt 0:00:15]} 34. Re2 {[%emt 0:00:55]} Qg5 {[%emt 0:01:10]} 35. Qd4+ {[%emt 0:00:19]} (35. Qxg5 $1 $11 {and White is okay.} Rxg5 36. a4) 35... Kg8 $2 {[%emt 0:00:26]} (35... e5 $19 36. Qxa7 Rc8) 36. Rf2 {[%emt 0:03:32]} (36. Qxa7 Rf8 37. Rf2 d4 38. Qxd4 (38. Rxf8+ Kxf8 39. Qxd4 Rxh2 $15) 38... Rxf2 39. Qxf2 Bxb5 $15) ({Better is} 36. h4 $14 Qg7 37. Bd3) 36... Bxb5 {[%emt 0:00:43]} 37. Qxa7 {[%emt 0:00:49]} Qe5 {[%emt 0:00:46]} 38. Kd2 {[%emt 0:02:43]} Qg5+ {[%emt 0:00:38]} 39. Kc2 {[%emt 0:00:42] Really sharp!} Qd8 {[%emt 0:00:35]} 40. Re1 {[%emt 0:01:33]} Rh6 {[%emt 0:00:59]} (40... e5 $14) 41. Qe3 {[%emt 0:17:19]} (41. Qd4 $6 Qd6 $14) 41... Rf6 {[%emt 0:00:00]} 42. Qg5+ {[%emt 0:00:00]} Rg6 {[%emt 0:00:00]} (42... Kf7 $2 43. Rf4 Qe7 44. Qh5+ Kg7 45. Kb2 $18) 43. Qe5 {[%emt 0:00:00]} (43. Qf4 $6 Bd7 $14) 43... Bd7 {[%emt 0:00:00]} 44. Qf4 {[%emt 0:00:00]} ({White should try} 44. Ref1 $1 $18 {Hoping for Rf7.} Rg7 45. Kb2) 44... Rg7 {[%emt 0:00:00] Inhibits Rf7.} 45. Kb2 {[%emt 0:00:00]} Qb6+ {[%emt 0:00:00]} 46. Ka1 {[%emt 0:00:00]} Rc8 {[%emt 0:00:00]} 47. Ref1 {[%emt 0:00:00][%cal Of4f8] Qf8+! would kill now.} Qc5 {[%emt 0:00:00] Inhibits Qf8+.} 48. Qe5 {[%emt 0:00:00]} Re7 {[%emt 0:02:22] [#]} (48... Qxc3+ {leads to mate.} 49. Qxc3 Re8 50. Qf6 Kh8 51. Qh6 Kg8 52. Rf8+ $3 {[%mdl 512]} Rxf8 53. Bxh7+ $1 {[%mdl 512]} Kh8 54. Rxf8+) 49. Rf3 $40 {[%emt 0:00:00][%mdl 128] Black must now prevent h4. White attacks with force.} Rg7 {[%emt 0:06:26] [#]} (49... b6 $16 {might work better.} 50. h4 d4) 50. h4 $1 $18 {[%emt 0:00:00][%cal Bh2h4,Bh4h5][%mdl 32]} Qe7 $2 {[%emt 0:02:45]} (50... b6 51. h5 d4) 51. Rf6 {[%emt 0:00:00] White is clearly winning.} Rd8 {[%emt 0:05:38]} (51... Ra8 $142 52. h5 h6 53. Rxh6 Qg5 54. Bh7+ Kh8 55. Qxg5 Rxg5) 52. h5 {[%emt 0:00:00] White threatens h6 and mate.} h6 {[%emt 0:01:40]} 53. Bg6 {[%emt 0:00:00] Weighted Error Value: White=0.29 (precise) /Black=0.42} 1-0

[Event "GER-ch Youth-U16 2022"]
[Site "Willingen"]
[Date "2022.06.11"]
[Round "9.6"]
[White "Hommer, Jeremy"]
[Black "Jaskulski, Jan"]
[Result "1-0"]
[ECO "E06"]
[WhiteElo "2152"]
[BlackElo "1727"]
[Annotator "TA"]
[PlyCount "105"]
[EventDate "2022.06.05"]
[EventType "swiss"]
[EventRounds "9"]
[EventCountry "GER"]
[SourceTitle "playchess.com"]
[Source "ChessBase"]
[SourceQuality "1"]
[TimeControl "40/4500+30:900+30"]

{[%evp 18,105,0,-11,46,-47,-39,-114,-119,-114,-70,-66,-63,-79,-58,-81,-85,-81,-75,-83,-56,-51,-63,-67,-58,-66,73,76,61,64,66,62,299,296,281,275,421,310,298,303,364,360,345,232,219,171,173,173,173,172,165,164,185,167,174,184,181,167,167,139,455,448,409,383,1410,1229,927,931,29961,29961,29971,29972,29975,29974,29974,29973,29973,29974,29975,29976,29976,29977,29977,29978,29978,29979,29979,29980,29977,29973]} 1. d4 {[%emt 0:00:00]} d5 {[%emt 0:00:00]} 2. c4 {[%emt 0:00:00]} e6 {[%emt 0:00:00]} 3. Nf3 {[%emt 0:00:00]} Be7 {[%emt 0:00:00]} 4. g3 {[%emt 0:00:00]} Nf6 {[%emt 0:00:00]} 5. Bg2 {[%emt 0:00:00]} O-O {[%emt 0:00:00]} 6. O-O {[%emt 0:00:00]} dxc4 {[%emt 0:00:00]} 7. Ne5 {[%emt 0:00:00]} Nc6 {[%emt 0:00:00]} 8. Nxc6 {[%emt 0:00:00]} bxc6 {[%emt 0:00:00]} 9. Na3 {[%emt 0:00:00]} Bxa3 {[%emt 0:09:05]} 10. bxa3 {[%emt 0:00:00]} Rb8 {[%emt 0:00:50] E05: Open Catalan: 5 Nf3 Be7.} ({Black should try} 10... Ba6 $11) 11. e3 {[%emt 0:07:41]} (11. Qa4 $1 $14) 11... c5 $15 {[%emt 0:09:44] [#]} 12. a4 $146 {[%emt 0:11:13]} (12. Qa4 $15) ({Predecessor:} 12. Qa4 Bb7 13. Bxb7 Rxb7 14. Qxc4 cxd4 15. Qxd4 Qb8 16. e4 c5 17. Qxc5 Nxe4 18. Qd4 {½-½ (54) Svenn,G (2385)-Bergstrom,C (2420) Sweden 1996}) 12... cxd4 $17 {[%emt 0:00:41] Black is better.} 13. exd4 {[%emt 0:00:35]} Bb7 {[%emt 0:02:59]} 14. Bxb7 {[%emt 0:02:50]} Rxb7 {[%emt 0:00:03]} 15. Ba3 {[%emt 0:01:08]} Re8 {[%emt 0:00:36] And now ...Nd5 would win.} 16. Rc1 {[%emt 0:03:25]} Qd5 {[%emt 0:02:24]} 17. Qe2 {[%emt 0:08:21]} Ne4 {[%emt 0:19:43]} 18. Rxc4 {[%emt 0:17:47]} Nd2 {[%emt 0:02:50]} 19. Rc5 {[%emt 0:00:22]} Qxd4 {[%emt 0:12:34]} 20. Rd1 {[%emt 0:03:31]} Rd8 {[%emt 0:00:50][%cal Od2f3] [#] White must now prevent ...Nf3+!} 21. Kg2 {[%emt 0:02:01] Prevents Nf3.} Rb1 {[%emt 0:02:15]} (21... Qxa4 $2 22. Rxd2 Rxd2 23. Qxd2 $18) (21... Qd3 $1 $15 {keeps the upper hand.} 22. Qe3 a6) 22. Rcc1 $16 {[%emt 0:02:28]} Rbb8 {[%emt 0:08:49]} 23. Rxc7 {[%emt 0:06:13] Strongly threatening Bc1.} Qxa4 {[%emt 0:04:50]} 24. Bc1 $1 $36 {[%emt 0:16:30][%mdl 2048] White is pushing.} ({Inferior is} 24. Qh5 g6 25. Qe2 Qa5 $17) 24... Ne4 {[%emt 0:04:41] [#]} (24... Qe4+ $14 25. Qxe4 Nxe4 26. Rxd8+ Rxd8) 25. Rxd8+ $1 $18 {[%emt 0:00:33]} Rxd8 {[%emt 0:00:30]} 26. Rc4 {[%emt 0:00:39]} Qa6 {[%emt 0:04:33]} (26... Nxg3 $142 27. hxg3 (27. Rxa4 Nxe2 28. Be3 Ra8 $15) (27. fxg3 Qa6 $16) 27... Qa6) 27. Rxe4 {[%emt 0:00:12]} Qc6 {[%emt 0:00:32] ...f5 is the strong threat.} 28. Qc4 {[%emt 0:01:25]} Qb7 {[%emt 0:00:06]} 29. f3 {[%emt 0:00:46]} Rc8 {[%emt 0:00:03]} 30. Qf1 {[%emt 0:00:59]} Qb1 {[%emt 0:00:27]} 31. Bf4 {[%emt 0:01:03]} Qxa2+ {[%emt 0:00:11]} 32. Re2 {[%emt 0:00:06]} Rc2 {[%emt 0:01:00]} 33. Rxc2 {[%emt 0:00:09]} Qxc2+ {[%emt 0:00:01]} 34. Qf2 {[%emt 0:00:13]} Qa4 {[%emt 0:00:05]} 35. Qb2 {[%emt 0:01:14] Threatening mate with Qb8+.} h5 {[%emt 0:00:56]} 36. Qb8+ {[%emt 0:01:10]} Kh7 {[%emt 0:00:11]} 37. Qe5 {[%emt 0:00:27]} Qc2+ {[%emt 0:00:31]} 38. Kh3 {[%emt 0:00:31]} Qf5+ $2 {[%emt 0:01:55][%mdl 8192] This costs Black the game.} (38... Qd3 $16 {is more resistant.}) 39. Qxf5+ {[%emt 0:00:08]} exf5 {[%emt 0:00:00][%mdl 4096] Endgame KB-KP} 40. Bc7 {[%emt 0:00:10]} g5 $2 {[%emt 0:00:55]} (40... Kg6 41. Kh4 Kh6 42. Bf4+ Kg6) 41. Kg2 {[%emt 0:15:24]} Kg6 {[%emt 0:00:00]} 42. Kf2 {[%emt 0:00:00]} h4 {[%emt 0:00:00]} 43. gxh4 {[%emt 0:00:00] White mates.} g4 {[%emt 0:00:00]} 44. f4 {[%emt 0:00:00]} f6 {[%emt 0:00:00]} 45. Kg3 {[%emt 0:00:00]} Kh6 {[%emt 0:00:00]} 46. Ba5 {[%emt 0:00:00]} Kh5 {[%emt 0:00:00]} 47. Be1 {[%emt 0:00:00]} Kg6 {[%emt 0:00:00]} 48. Kf2 {[%emt 0:00:00]} Kh5 {[%emt 0:00:00]} 49. Ke3 {[%emt 0:00:00]} a5 {[%emt 0:00:00]} 50. Kd4 {[%emt 0:00:00]} a4 {[%emt 0:00:00]} 51. Kc3 {[%emt 0:00:00]} a3 {[%emt 0:00:00]} 52. Kb3 {[%emt 0:00:00]} a2 {[%emt 0:00:00]} 53. Kxa2 {[%emt 0:00:00] Weighted Error Value: White=0.12 (very precise) /Black=0.56} 1-0

[Event "GER-ch Youth-U16 2022"]
[Site "Willingen"]
[Date "2022.06.11"]
[Round "9.7"]
[White "Metzdorf, Matteo"]
[Black "Ohler, Julius"]
[Result "1/2-1/2"]
[ECO "B11"]
[WhiteElo "2009"]
[BlackElo "2011"]
[Annotator "TA"]
[PlyCount "38"]
[EventDate "2022.06.05"]
[EventType "swiss"]
[EventRounds "9"]
[EventCountry "GER"]
[SourceTitle "playchess.com"]
[Source "ChessBase"]
[SourceQuality "1"]
[TimeControl "40/4500+30:900+30"]

{[%evp 12,38,3,6,3,8,0,0,5,0,0,-33,-33,-33,-33,-33,-33,-33,-33,-37,-33,-33,-33,-33,0,-33,0,-43,0]} 1. e4 {[%emt 0:00:00]} c6 {[%emt 0:00:00]} 2. Nc3 {[%emt 0:00:00]} d5 {[%emt 0:00:00]} 3. Nf3 {[%emt 0:00:00]} Bg4 {[%emt 0:00:00]} 4. h3 {[%emt 0:00:00]} Bxf3 {[%emt 0:00:00]} 5. Qxf3 {[%emt 0:00:00]} e6 {[%emt 0:00:00]} 6. d4 {[%emt 0:00:31]} Nf6 {[%emt 0:00:00]} 7. Bg5 {[%emt 0:16:11]} h6 {[%emt 0:00:00] B11: Caro-Kann: Two Knights Variation.} 8. Bxf6 {[%emt 0:04:55]} Qxf6 {[%emt 0:00:00]} 9. Qxf6 {[%emt 0:00:52]} ({Much worse is} 9. exd5 Qxf3 10. gxf3 cxd5 $15) 9... gxf6 {[%emt 0:00:00] [#] The position is equal.} 10. g3 $146 {[%emt 0:09:10]} ({Predecessor:} 10. a3 Nd7 11. Be2 O-O-O 12. O-O-O dxe4 13. Nxe4 f5 14. Nc3 Nf6 15. Bf3 h5 16. Kb1 {0-1 (34) Garcia Jimenez,F (2251)-Cruz Lledo,P (2414) Xativa 2016}) 10... Bb4 {[%emt 0:00:00]} 11. Bg2 {[%emt 0:01:34]} Nd7 {[%emt 0:00:00][%cal Bb8d7,Bd7b6,Bb6c4,Bc4d2][%mdl 32]} 12. O-O {[%emt 0:12:59][%cal Re4d5]} Bxc3 {[%emt 0:00:00]} 13. bxc3 {[%emt 0:00:01]} Nb6 {[%emt 0:00:00]} 14. Rfe1 {[%emt 0:06:41]} O-O-O {[%emt 0:00:00]} 15. a4 {[%emt 0:04:40]} Nc4 {[%emt 0:08:05]} 16. Bf1 {[%emt 0:05:49]} Nd2 {[%emt 0:00:37] [#] Threatens to win with ...Nf3+.} 17. Bg2 {[%emt 0:00:05] Inhibits Nf3+.} Nc4 {[%emt 0:00:08]} 18. Bf1 {[%emt 0:00:04]} Nd2 {[%emt 0:03:48]} (18... Nd6 $5 {[%cal Rd6e4]}) 19. Bg2 {[%emt 0:00:02] Against Nf3+} Nc4 {Weighted Error Value: White=0.03 (flawless) /Black=0.06 (flawless)} 1/2-1/2